[Event "93rd German Championship 2022"]
[Site "Magdeburg"]
[Date "2022.08.19"]
[Round "8.7"]
[White "Bethke, Richard"]
[Black "Richter, Nils"]
[Result "1/2-1/2"]
[ECO "B85"]
[WhiteElo "2381"]
[BlackElo "2359"]
[Annotator "TA"]
[PlyCount "80"]
[EventDate "2022.08.14"]
[EventType "swiss"]
[EventCountry "GER"]
[SourceTitle "playchess.com"]
[Source "ChessBase"]
[SourceQuality "1"]
[TimeControl "40/5400+30:1800+30"]

{[%evp 26,80,20,-7,0,-2,0,-19,-30,-22,-21,-28,-28,-27,-21,-29,-6,-3,-7,0,0,0,9,0,2,-15,0,-6,-10,0,0,0,0,-26,-28,-17,-10,-9,0,0,0,0,0,0,0,0,0,0,0,-2,0,0,0,-12,0,0,0]} 1. e4 {[%emt 0:00:03]} c5 {[%emt 0:00:06]} 2. Nf3 {[%emt 0:00:06]} e6 {[%emt 0:00:07]} 3. d4 {[%emt 0:00:05]} cxd4 {[%emt 0:00:08]} 4. Nxd4 {[%emt 0:00:04]} Nc6 {[%emt 0:00:21]} 5. Nc3 {[%emt 0:00:18]} Qc7 {[%emt 0:00:14]} 6. Be2 {[%emt 0:00:16]} Nf6 {[%emt 0:00:41]} 7. Be3 {[%emt 0:01:14]} a6 {[%emt 0:00:41]} 8. O-O {[%emt 0:00:17]} Be7 {[%emt 0:00:50]} 9. f4 {[%emt 0:00:34]} d6 {[%emt 0:00:15]} 10. Qe1 {[%emt 0:00:43]} O-O {[%emt 0:00:49]} 11. Qg3 {[%emt 0:00:40]} Nxd4 {[%emt 0:00:20]} 12. Bxd4 {[%emt 0:00:06]} b5 {[%emt 0:00:08]} 13. a3 {[%emt 0:00:07]} Bb7 {[%emt 0:00:46]} 14. Bd3 {[%emt 0:03:11]} e5 {[%emt 0:08:22] is the legacy move (14...Bc6). B85: Sicilian Scheveningen: 6 Be2 a6, lines with early Be3.} 15. fxe5 {[%emt 0:09:08]} Nh5 {[%emt 0:00:14]} 16. Qe3 {[%emt 0:02:13] Hoping for Rf5.} dxe5 {[%emt 0:07:38]} 17. Bxe5 {[%emt 0:01:09]} Qxe5 {[%emt 0:07:17]} 18. Rf5 {[%emt 0:00:04] [#]} Qd6 $146 {[%emt 0:01:53] Threatens to win with ...g6.} ({Predecessor:} 18... Qc7 19. Rxh5 f5 20. Kh1 g6 21. Rh3 f4 22. Qd2 Bf6 23. Re1 Bxc3 24. Qxc3 Qxc3 25. bxc3 {½-½ (45) Zaksaite,S (2312)-Khurtsidze,N (2409) Mamaia 2016}) 19. Rxh5 {[%emt 0:01:23]} g6 {[%emt 0:00:16]} 20. Rh3 {[%emt 0:02:48][%cal Oc3d5,Bh5h3,Bh3e3,Be3e1,Be1f1][%mdl 32]} Qc5 {[%emt 0:00:23] Inhibits Nd5. aiming for ...Qxe3+.} 21. Kh1 {[%emt 0:01:23] And now Qh6 would win.} ({Wrong is} 21. Nd5 $2 Bxd5 22. Kf1 (22. exd5 $2 Qxe3+ 23. Rxe3 Bc5 $19) 22... Be6 23. Qxc5 Bxc5 $19) 21... Qxe3 {[%emt 0:02:41]} 22. Rxe3 {[%emt 0:00:04]} Bc5 {[%emt 0:05:07]} 23. Ree1 {[%emt 0:03:18]} Bf2 {[%emt 0:09:19]} 24. Rf1 {[%emt 0:06:22]} Bd4 {[%emt 0:00:10]} 25. Rab1 {[%emt 0:04:57]} Rad8 {[%emt 0:06:29]} 26. a4 {[%emt 0:18:28]} bxa4 {[%emt 0:18:47]} 27. Nxa4 {[%emt 0:03:29]} Kg7 {[%emt 0:00:23]} 28. b4 {[%emt 0:05:30]} Rfe8 {[%emt 0:01:13]} 29. Rfe1 {[%emt 0:03:58]} Bc6 {[%emt 0:08:58] This bishop pair is nice.} 30. Nc5 {[%emt 0:03:28]} Bxc5 {[%emt 0:02:02] The position is equal.} 31. bxc5 {[%emt 0:00:05]} Bb5 {[%emt 0:00:59]} 32. Rec1 {[%emt 0:19:24]} Re5 {[%emt 0:04:32]} 33. Bxb5 {[%emt 0:01:53]} axb5 $11 {[%emt 0:00:02][%mdl 4096] Endgame KRR-KRR} 34. c4 {[%emt 0:00:08]} b4 {[%emt 0:02:27]} 35. Rxb4 {[%emt 0:01:10]} Rxc5 {[%emt 0:00:27]} 36. h3 {[%emt 0:01:11]} Rd4 {[%emt 0:01:18]} 37. e5 {[%emt 0:01:48]} Rxe5 {[%emt 0:02:23]} 38. Rb7 {[%emt 0:00:09]} Rde4 {[%emt 0:01:05]} 39. Kh2 {[%emt 0:00:51]} Re7 {[%emt 0:03:14]} 40. Rb2 {[%emt 0:02:57]} Rc7 {[%emt 0:00:51] An interesting draw.  Weighted Error Value: White=0.05 (flawless) /Black=0.04 (flawless)} 1/2-1/2

[Event "93rd German Championship 2022"]
[Site "Magdeburg"]
[Date "2022.08.19"]
[Round "8.8"]
[White "Kunin, Vitaly"]
[Black "Gungl, Theo"]
[Result "1/2-1/2"]
[ECO "B20"]
[WhiteElo "2528"]
[BlackElo "2359"]
[Annotator "TA"]
[PlyCount "80"]
[EventDate "2022.08.14"]
[EventType "swiss"]
[EventCountry "GER"]
[SourceTitle "playchess.com"]
[Source "ChessBase"]
[SourceQuality "1"]
[TimeControl "40/5400+30:1800+30"]

{[%evp 9,80,26,41,46,40,34,43,54,47,49,43,35,62,57,66,59,54,41,39,8,4,0,0,0,38,18,33,19,39,0,0,0,2,0,0,0,0,-75,-72,-94,-98,-104,-98,-99,-84,-106,-102,-103,-114,-107,-101,-110,-114,-122,-127,-119,-119,-119,-121,-138,-126,-136,-86,-105,-70,-75,-20,-90,-89,-179,-87,-82,0]} 1. e4 {[%emt 0:00:04]} c5 {[%emt 0:00:06]} 2. Ne2 {[%emt 0:00:18]} d6 {[%emt 0:00:20]} 3. g3 {[%emt 0:00:11]} Nc6 {[%emt 0:00:49]} 4. Bg2 {[%emt 0:00:11]} Nf6 {[%emt 0:01:36]} 5. c3 {[%emt 0:00:36]} d5 {[%emt 0:19:57]} 6. exd5 {[%emt 0:00:40] B20: Sicilian: Unusual White 2nd moves.} Nxd5 {[%emt 0:00:02]} 7. d4 {[%emt 0:01:10]} e6 {[%emt 0:04:46]} 8. O-O {[%emt 0:00:43] White is slightly better.} Be7 {[%emt 0:05:27]} 9. dxc5 {[%emt 0:10:09]} Bxc5 {[%emt 0:00:04]} 10. Nf4 {[%emt 0:01:01] [#]} (10. c4 $5 {[%cal Rc4d5]} Nf6 11. Qxd8+ Nxd8 12. a3 $14) 10... Nf6 $146 {[%emt 0:05:53]} ({Predecessor:} 10... Nxf4 11. Qxd8+ Nxd8 12. Bxf4 Bd7 13. Nd2 Bc6 14. Bxc6+ Nxc6 15. Ne4 Be7 16. Nd6+ Bxd6 17. Bxd6 {½-½ (35) Surya,B (1938)-Lehingrat,C (1341) Windsor 2015}) 11. Qxd8+ {[%emt 0:05:28]} Nxd8 {[%emt 0:00:27]} 12. Nd3 {[%emt 0:03:25]} Be7 {[%emt 0:01:52]} 13. c4 {[%emt 0:03:47]} Bd7 {[%emt 0:00:52]} 14. Ne5 {[%emt 0:00:28]} Nc6 {[%emt 0:11:16]} 15. Nxd7 {[%emt 0:01:09]} Nxd7 {[%emt 0:00:15]} 16. Nc3 {[%emt 0:00:41]} Nb6 {[%emt 0:01:08]} 17. b3 {[%emt 0:01:31]} Bf6 {[%emt 0:02:00]} 18. Bb2 {[%emt 0:00:12]} O-O-O {[%emt 0:01:25] aiming for ...Rd2.} 19. Rfd1 {[%emt 0:06:40] Prevents Rd2.} Nb4 {[%emt 0:02:25]} 20. c5 {[%emt 0:01:23]} Nd7 {[%emt 0:09:17]} 21. a3 {[%emt 0:00:55]} Nc2 {[%emt 0:01:34]} 22. Rac1 {[%emt 0:00:27]} Nd4 {[%emt 0:00:15]} 23. b4 {[%emt 0:01:02]} (23. Rb1 $1 $11 {remains equal.} Nxc5 24. Nd5 (24. b4 Ncb3 $11) 24... exd5 25. Bxd4 Bxd4 26. Rxd4) 23... Ne5 $17 {[%emt 0:02:55]} 24. Bf1 {[%emt 0:13:03] Inhibits Nc4.} Nb3 $1 {[%emt 0:02:02] Pair of Knights!} 25. Rxd8+ {[%emt 0:00:18]} Rxd8 {[%emt 0:00:02]} 26. Rd1 {[%emt 0:00:14]} Nd2 {[%emt 0:01:19] Hoping for ...Nec4.} 27. Ba1 {[%emt 0:30:16]} Nec4 {[%emt 0:02:11] Threatens to win with ...Bxc3.} 28. Bxc4 {[%emt 0:00:32]} Nxc4 {[%emt 0:02:13]} 29. Rc1 {[%emt 0:00:08]} Nxa3 {[%emt 0:04:54]} 30. Ne4 {[%emt 0:00:24]} Bxa1 {[%emt 0:00:28]} 31. Nd6+ {[%emt 0:00:39]} Kb8 {[%emt 0:00:42]} 32. Rxa1 {[%emt 0:00:32][%mdl 4096] Endgame KRN-KRN} Nc2 {[%emt 0:00:04][%csl LRa1,LRb4]} 33. Rb1 {[%emt 0:02:59]} Rd7 {[%emt 0:04:08]} 34. f4 {[%emt 0:08:48]} Ne3 {[%emt 0:05:02]} 35. Kf2 {[%emt 0:00:53] [#]} Nd5 {[%emt 0:00:51]} ({Better is} 35... Nf5 $1 36. Nxf5 exf5) 36. Kf3 {[%emt 0:02:49]} g6 {[%emt 0:02:51]} 37. Rb3 {[%emt 0:00:19]} a6 {[%emt 0:01:01]} (37... b6 $17) 38. Ke4 {[%emt 0:00:54]} (38. b5 $11 {keeps the balance.}) 38... Kc7 {[%emt 0:00:42]} 39. Nc4 {[%emt 0:03:17] [#]} (39. Ke5 $17) 39... Nf6+ {[%emt 0:01:27]} (39... f6 $1 $19 {has better winning chances.} 40. Kf3 Kc6) 40. Kf3 {[%emt 0:00:11]} Nd5 {[%emt 0:01:38] Weighted Error Value: White=0.15 (very precise) /Black=0.13 (very precise)} (40... Rd8 $17) 1/2-1/2

[Event "93rd German Championship 2022"]
[Site "Magdeburg"]
[Date "2022.08.19"]
[Round "8.9"]
[White "Carlstedt, Jonathan"]
[Black "Dahl, Christoph"]
[Result "1-0"]
[ECO "A50"]
[WhiteElo "2446"]
[BlackElo "2355"]
[Annotator "TA"]
[PlyCount "67"]
[EventDate "2022.08.14"]
[EventType "swiss"]
[EventCountry "GER"]
[SourceTitle "playchess.com"]
[Source "ChessBase"]
[SourceQuality "1"]
[TimeControl "40/5400+30:1800+30"]

{[%evp 14,67,23,22,14,18,35,0,0,-1,0,0,0,-2,-20,-76,-28,-71,-51,-86,-88,-96,-72,-51,-46,-85,-104,-156,-165,-160,-159,-212,-180,-200,-182,-215,-212,-184,-199,-240,-156,-149,-148,-193,-153,-235,-189,-203,0,0,848,779,845,779,1239,1359]} 1. d4 {[%emt 0:00:05]} Nf6 {[%emt 0:00:30]} 2. c4 {[%emt 0:00:06]} g6 {[%emt 0:01:00]} 3. h4 {[%emt 0:00:06][%cal Bh2h4,Bh4h5,Bh5h6][%mdl 32]} d6 {[%emt 0:02:21]} 4. Nc3 {[%emt 0:00:08]} Bg7 {[%emt 0:01:06]} 5. e4 {[%emt 0:00:08]} O-O {[%emt 0:00:36]} 6. Be2 {[%emt 0:00:06]} c5 {[%emt 0:02:52]} 7. d5 {[%emt 0:00:13]} e6 {[%emt 0:03:39]} 8. h5 {[%emt 0:00:06]} exd5 {[%emt 0:00:53] E73: King's Indian: Averbakh Variation without 6...c5.} 9. exd5 {[%emt 0:00:08]} Re8 {[%emt 0:02:24]} 10. h6 {[%emt 0:00:09]} Bh8 {[%emt 0:00:42] The position is equal.} 11. Bg5 {[%emt 0:00:10]} Qa5 {[%emt 0:11:53]} 12. Bd2 {[%emt 0:00:33]} Qb6 {[%emt 0:11:03] [#]} 13. Rh4 $146 {[%emt 0:00:57]} ({Predecessor:} 13. b3 Ne4 14. Nxe4 Rxe4 15. Rc1 Nd7 16. Nf3 Ne5 17. Ng5 Nd3+ 18. Kf1 Nb2 19. Qc2 Rxe2 20. Kxe2 {1-0 (42) Ding,L (2806)-Jones,G (2669) chess24.com INT 2022}) 13... Bf5 {[%emt 0:01:47]} (13... Qxb2 $2 14. Rb1 Qa3 15. Nb5 $18) 14. Kf1 {[%emt 0:10:41]} (14. Qc1 $11) 14... Ne4 {[%emt 0:11:37]} (14... Qxb2 $17 {[%cal Of6d5]} 15. Qc1 Qxc1+ 16. Rxc1 Ne4 17. Nxe4 Bxe4) 15. Nxe4 {[%emt 0:01:55]} Bxe4 {[%emt 0:01:42]} 16. Bc1 {[%emt 0:10:00]} ({Much worse is} 16. Qa4 Na6 17. Qb3 Bxb2 $17) 16... Nd7 {[%emt 0:10:23]} (16... Bxb2 $2 17. Rxe4 $1 {[%mdl 512]} Rxe4 18. Rb1 $18) 17. f3 {[%emt 0:05:01]} Bf5 {[%emt 0:00:15] Strongly threatening ...Bf6.} 18. g4 {[%emt 0:00:09]} g5 $1 $36 {[%emt 0:00:11][%mdl 2048] Black fights for an advantage.} 19. Rh2 {[%emt 0:16:39]} Bg6 {[%emt 0:01:01]} 20. a4 {[%emt 0:06:32]} ({Better is} 20. Bd3) 20... Bxb2 $17 {[%emt 0:09:06]} 21. a5 {[%emt 0:01:05]} Qb4 {[%emt 0:00:07]} 22. Ra2 {[%emt 0:09:23]} (22. Bxg5 $17 Bxa1 23. Qxa1 Qb1+ 24. Qxb1 Bxb1 25. Nh3) 22... Be5 $19 {[%emt 0:05:32]} 23. Rg2 {[%emt 0:04:40]} Qb1 {[%emt 0:01:17]} 24. Ra3 {[%emt 0:00:11]} Bb2 {[%emt 0:06:39]} 25. Bxb2 {[%emt 0:02:15]} Qxb2 {[%emt 0:00:03]} 26. Rb3 {[%emt 0:00:22]} Qe5 {[%emt 0:06:11]} 27. Nh3 {[%emt 0:02:21]} b6 {[%emt 0:00:53]} 28. a6 {[%emt 0:00:09]} f6 {[%emt 0:01:24]} 29. Qc1 {[%emt 0:03:39]} (29. Rf2 $17) 29... Qd4 {[%emt 0:00:47] White must now prevent ...Re7.} 30. f4 {[%emt 0:00:25]} Rxe2 $2 {[%emt 0:04:41]} 31. Rxe2 $11 {[%emt 0:04:08] Threatens to win with f5. Dancing on a razor blade.} Bd3 {[%emt 0:00:35][%mdl 8192] [#]} (31... gxf4 $11 32. Rd2 (32. Nxf4 Ne5 $11) 32... Qe5) 32. Rxd3 $1 $18 {[%emt 0:00:16][%mdl 512] White is clearly winning.} Qxd3 {[%emt 0:00:03] [#]} 33. Nf2 $1 {[%emt 0:00:07] Active counter play!} Qd4 {[%emt 0:00:17]} 34. Re4 {[%emt 0:01:13] Weighted Error Value: White=0.22 (precise) /Black=0.21 (precise)} 1-0

[Event "93rd German Championship 2022"]
[Site "Magdeburg"]
[Date "2022.08.19"]
[Round "8.10"]
[White "Langheinrich, Ferenc"]
[Black "Bracker, Arne"]
[Result "1-0"]
[ECO "E20"]
[WhiteElo "2357"]
[BlackElo "2277"]
[Annotator "TA"]
[PlyCount "75"]
[EventDate "2022.08.14"]
[EventType "swiss"]
[EventCountry "GER"]
[SourceTitle "playchess.com"]
[Source "ChessBase"]
[SourceQuality "1"]
[TimeControl "40/5400+30:1800+30"]

{[%evp 13,75,-6,0,0,-8,-8,8,-17,55,20,75,59,78,8,53,68,70,59,141,131,120,87,82,79,76,0,0,0,0,0,0,0,0,0,0,0,20,0,0,-46,-50,-22,-20,-14,-15,-20,-20,-31,277,277,2024,2064,1963,481,447,0,1998,1918,1796,1781,1703,1647,2310,1945]} 1. d4 {[%emt 0:00:07]} Nf6 {[%emt 0:07:58]} 2. c4 {[%emt 0:00:08]} e6 {[%emt 0:00:13]} 3. Nc3 {[%emt 0:00:06]} Bb4 {[%emt 0:00:12]} 4. Bd2 {[%emt 0:00:07]} O-O {[%emt 0:00:58]} 5. e3 {[%emt 0:00:09]} d5 {[%emt 0:00:36]} 6. Nf3 {[%emt 0:01:41]} b6 {[%emt 0:00:33]} 7. cxd5 {[%emt 0:00:17]} exd5 {[%emt 0:00:09]} 8. Ne5 {[%emt 0:02:04] E51: Nimzo-Indian: Rubinstein: 4...0-0 5 Nf3 d5.} Bb7 {[%emt 0:02:59]} 9. Bd3 {[%emt 0:00:30]} a6 {[%emt 0:04:44]} 10. Qf3 {[%emt 0:10:45] [#] The position is equal.} c5 $146 {[%emt 0:11:36]} (10... Re8 $11) ({Predecessor:} 10... Bd6 11. Qh3 c5 12. O-O h6 13. Rad1 Nc6 14. Ng4 Nxg4 15. Qxg4 Bc8 16. Qh5 Be6 {½-½ (24) Horvath,D (2453)-Alsina Leal,D (2500) Cattolica 2021}) 11. Qh3 {[%emt 0:03:10]} (11. a3 $5 {[%cal Ra3b4]} Ba5 12. Rb1 $11) 11... g6 {[%emt 0:07:18]} (11... Re8 $11 {remains equal.}) 12. a3 {[%emt 0:04:37]} Ba5 {[%emt 0:00:59]} 13. Rb1 {[%emt 0:09:37] 0x0.00198bcac56fdp-1022s more active pieces.} (13. O-O $16) 13... c4 {[%emt 0:02:33]} 14. Bc2 {[%emt 0:00:26]} b5 {[%emt 0:02:39]} 15. O-O {[%emt 0:05:59]} Bb6 {[%emt 0:06:30]} (15... Ne8 $14) 16. f4 $16 {[%emt 0:02:02]} Nc6 {[%emt 0:01:29]} 17. Kh1 {[%emt 0:02:17]} Qd6 {[%emt 0:03:36]} 18. Qh6 {[%emt 0:05:17]} Rfe8 {[%emt 0:04:24]} 19. Nxc6 {[%emt 0:20:26]} (19. Be1 $16) 19... Bxc6 $11 {[%emt 0:02:14]} (19... Qxc6 20. f5 g5 21. Qxg5+ Kh8 22. Qh6 $16) 20. f5 $1 {[%emt 0:04:05][%cal Rf5g6]} Ng4 {[%emt 0:11:12]} 21. Qh4 {[%emt 0:03:50]} Bc7 {[%emt 0:03:12][%cal Rd6h2]} 22. g3 {[%emt 0:00:57]} h5 {[%emt 0:01:06]} (22... Nxe3 $2 23. fxg6 $1 fxg6 24. Rf7 $3 {[%mdl 512]} Kxf7 25. Qxh7+ Ke6 26. Bxe3 Qxg3 27. hxg3 $18) 23. Ne2 {[%emt 0:06:32] And now fxg6 would win.} Bd8 {[%emt 0:09:35]} (23... Nxe3 {[#]} 24. fxg6 $1 fxg6 25. Bxe3 $18) 24. Qh3 {[%emt 0:00:28] Black must now prevent fxg6.} Rxe3 {[%emt 0:00:59]} 25. Nf4 $36 {[%emt 0:02:27][%mdl 2048] White has some pressure.} Re4 $1 {[%emt 0:02:41]} 26. Bb4 {[%emt 0:04:50] [#]} (26. fxg6 $11 fxg6 27. Qg2 (27. Bxe4 dxe4 28. d5 Bb7 $11)) 26... Qd7 $1 $15 {[%emt 0:03:21]} 27. Bxe4 {[%emt 0:00:21]} dxe4 {[%emt 0:00:02]} 28. d5 {[%emt 0:00:05]} Bb7 $1 {[%emt 0:00:11]} (28... Bxd5 $2 29. Rbd1 Qxf5 30. Rxd5 $18) 29. fxg6 {[%emt 0:01:37]} fxg6 {[%emt 0:00:02] ...e3 is the strong threat.} 30. Qg2 $1 {[%emt 0:03:00]} Ne3 $2 {[%emt 0:07:55][%mdl 8192]} (30... e3 $15 {stays ahead.} 31. Qc2 (31. Qe4 Qf7 $17) 31... Qf7) 31. Qxe4 $18 {[%emt 0:00:53]} Nxd5 $2 {[%emt 0:00:02]} (31... Bg5 32. Qxg6+ (32. Qxe3 Bxf4 33. Rxf4 Qxd5+ 34. Rf3 Qxf3+ 35. Qxf3 Bxf3+ 36. Kg1 Bg4 $15) 32... Qg7) 32. Qxg6+ {[%emt 0:00:46]} Kh8 {[%emt 0:00:01]} 33. Qh6+ {[%emt 0:02:12]} (33. Qxh5+ $142 Kg8 34. Qg6+ Kh8 35. Ng2) 33... Kg8 {[%emt 0:00:12]} 34. Qg6+ {[%emt 0:00:27]} (34. Ng2 $142 Bf6 35. Rxf6 Nxf6 36. Qxf6) 34... Kh8 {[%emt 0:00:01] ( -> ...Nxf4+)} 35. Qxh5+ {[%emt 0:01:22] White is clearly winning.} Kg8 {[%emt 0:00:01]} 36. Qg6+ {[%emt 0:01:01]} Kh8 {[%emt 0:00:02]} 37. Ng2 {[%emt 0:00:51][%cal Rf1f8]} Bc7 {[%emt 0:03:56]} 38. Rf7 {[%emt 0:00:26] Weighted Error Value: White=0.59/Black=0.34} 1-0

[Event "93rd German Championship 2022"]
[Site "Magdeburg"]
[Date "2022.08.19"]
[Round "8.11"]
[White "Pajeken, Jakob Leon"]
[Black "Boder, Jan"]
[Result "1-0"]
[ECO "D37"]
[WhiteElo "2434"]
[BlackElo "2315"]
[Annotator "TA"]
[PlyCount "105"]
[EventDate "2022.08.14"]
[EventType "swiss"]
[EventCountry "GER"]
[SourceTitle "playchess.com"]
[Source "ChessBase"]
[SourceQuality "1"]
[TimeControl "40/5400+30:1800+30"]

{[%evp 16,105,27,15,51,47,66,83,83,76,162,165,209,171,173,170,170,175,171,154,229,212,227,206,200,201,220,206,212,192,192,193,198,185,190,120,139,54,141,159,154,148,226,224,200,183,351,354,350,316,337,344,357,370,327,0,398,282,291,180,315,297,325,302,401,389,450,340,544,528,526,543,528,534,610,596,664,649,635,646,685,685,780,767,947,950,847,801,1239,1201,6548,861]} 1. d4 {[%emt 0:00:03]} Nf6 {[%emt 0:00:22]} 2. Nf3 {[%emt 0:00:02]} e6 {[%emt 0:00:12]} 3. c4 {[%emt 0:00:05]} d5 {[%emt 0:00:22]} 4. Nc3 {[%emt 0:00:10]} Be7 {[%emt 0:00:56]} 5. g3 {[%emt 0:01:31]} O-O {[%emt 0:01:15]} 6. Bg2 {[%emt 0:02:23]} c6 {[%emt 0:03:01]} 7. O-O {[%emt 0:00:09]} dxc4 {[%emt 0:00:18]} 8. Ne5 {[%emt 0:01:31]} Nbd7 {[%emt 0:00:53]} 9. Nxc4 {[%emt 0:01:30]} Nb6 {[%emt 0:03:12] E06: Closed Catalan: Early deviations.} 10. Ne5 {[%emt 0:01:19]} Qc7 {[%emt 0:02:01]} 11. Bf4 {[%emt 0:02:42][%cal Oe5f7] Strongly threatening Nxf7!} Bd6 {[%emt 0:09:40] White is better.} 12. Rc1 {[%emt 0:01:45][%cal Oc3b5] [#]} Nbd5 $146 {[%emt 0:04:54] [#]} (12... Qe7 $16) ({Predecessor:} 12... Nfd7 13. Nb5 Qb8 14. Nxd6 Nxe5 15. Nxc8 Qxc8 16. Bxe5 f6 17. Bf4 g5 18. Bd2 h5 {1-0 (29) Rodriguez Berruti,A-Blanco,R (1470) Montevideo 2020}) 13. Nb5 $1 $18 {[%emt 0:01:54][%mdl 512]} Qd8 {[%emt 0:01:16]} (13... Qb8 14. Nxd6) 14. Nxd6 {[%emt 0:12:10]} Qxd6 {[%emt 0:04:44] [#]} 15. Nxf7 $1 {[%emt 0:00:10][%mdl 512]} Qe7 {[%emt 0:03:44]} 16. Ne5 {[%emt 0:01:11] Hoping for Bg5.} Nxf4 {[%emt 0:00:26]} 17. gxf4 {[%emt 0:00:05]} Nd5 {[%emt 0:00:27]} (17... Bd7 $16 18. e3 Be8) 18. e3 {[%emt 0:00:51]} Rf6 {[%emt 0:04:19]} 19. Qg4 {[%emt 0:12:04]} Rh6 {[%emt 0:04:49]} 20. Rc5 {[%emt 0:09:02]} a6 {[%emt 0:12:13]} 21. h3 {[%emt 0:10:57]} Kh8 {[%emt 0:04:03]} 22. Re1 {[%emt 0:06:47]} Nf6 {[%emt 0:04:02]} 23. Qg5 {[%emt 0:06:34]} Bd7 {[%emt 0:02:55]} 24. b4 {[%emt 0:05:50]} Rg8 {[%emt 0:02:21]} 25. Nd3 {[%emt 0:05:34]} (25. Rec1 $18) 25... Be8 $16 {[%emt 0:09:14]} 26. Re5 {[%emt 0:02:12]} (26. a3 $16) 26... Rh5 {[%emt 0:04:51]} (26... Bg6 $14 27. f5 Rh5) 27. Qg3 $36 {[%emt 0:00:12][%mdl 2048] White is on the roll. 0x0.001b84ac82dadp-1022s more active pieces. The black rooks are badly placed.} Bg6 {[%emt 0:00:19]} 28. e4 {[%emt 0:02:57][%cal Of4f5] aiming for f5!} Nd7 {[%emt 0:01:52] [#]} (28... Qf7 $16 {was worth a try.} 29. Rg5 Qd7) 29. Rxh5 $1 $18 {[%emt 0:00:31]} Bxh5 {[%emt 0:00:03]} 30. d5 {[%emt 0:03:38]} g5 $2 {[%emt 0:01:12] [#]} (30... exd5 31. exd5 Qf6 32. dxc6 bxc6) 31. f5 $1 {[%emt 0:01:28]} e5 {[%emt 0:00:44]} 32. dxc6 {[%emt 0:00:29]} bxc6 {[%emt 0:00:10]} 33. Rc1 {[%emt 0:00:42]} Qd6 {[%emt 0:02:22]} 34. Nc5 {[%emt 0:01:00] Nxd7 is the strong threat.} Nf6 {[%emt 0:02:28]} 35. Nd3 $2 {[%emt 0:01:38]} (35. Qd3 $18 Rd8 36. Qxd6 Rxd6 37. Nxa6) 35... g4 $2 {[%emt 0:02:32][%mdl 8192]} (35... Nd7 $11 36. Nc5 Nf6) 36. h4 {[%emt 0:01:12]} Re8 {[%emt 0:00:04]} 37. Qe3 {[%emt 0:00:27] Threatens to win with Bf1.} Bf7 {[%emt 0:00:46]} (37... g3 $142 38. fxg3 Ng4) 38. a3 {[%emt 0:00:41]} g3 {[%emt 0:01:20]} 39. Qxg3 {[%emt 0:02:45]} ({Don't play} 39. fxg3 Ng4 40. Qe2 Qd4+ 41. Nf2 Rg8 42. Rxc6 Bb3 $18) 39... Nh5 {[%emt 0:00:22]} 40. Qe3 {[%emt 0:01:22]} Rg8 {[%emt 0:00:22]} 41. Kf1 {[%emt 0:30:47]} Qf6 {[%emt 0:37:09]} (41... Rd8 {might work better.}) 42. Qc5 {[%emt 0:00:43] White is clearly winning.} Re8 {[%emt 0:00:00]} 43. Qxc6 {[%emt 0:00:00]} Qxh4 {[%emt 0:00:00]} 44. Qc7 {[%emt 0:00:00]} Qf6 {[%emt 0:00:00]} 45. Bf3 {[%emt 0:00:00]} Nf4 {[%emt 0:00:00]} 46. Nxf4 {[%emt 0:00:00]} exf4 {[%emt 0:00:00]} 47. Qxf4 {[%emt 0:00:00]} Qd4 {[%emt 0:00:00]} 48. Qe3 {[%emt 0:00:00]} Bc4+ {[%emt 0:00:00]} 49. Ke1 {[%emt 0:00:00]} Qd3 {[%emt 0:00:00]} 50. Qxd3 {[%emt 0:00:00]} Bxd3 {[%emt 0:00:00]} 51. Rc3 {[%emt 0:00:00]} Bxe4 {[%emt 0:00:00]} 52. Re3 {[%emt 0:00:00]} Bc6 {[%emt 0:00:00]} 53. Bxc6 {[%emt 0:00:00] Weighted Error Value: White=0.25 (precise) /Black=0.56} 1-0